[Event "Titled Tuesday Blitz May 11 2021"]
[White "Holt, Conrad"]
[Black "Dubov, Daniil"]
[WhiteFideId "2034387"]
[BlackFideId "24126055"]
[WhiteElo "2586"]
[BlackElo "2722"]
[Result "0-1"]
[Round "11"]
[TimeControl "180+1"]
[Date "2021.05.11"]
[WhiteClock "0:00:01"]
[BlackClock "0:00:35"]

1. d4 {[%clk 0:03:00]}  Nf6 {[%clk 0:02:59]} 2. c4 {[%clk 0:03:00]}  g6 {[%clk 0:02:59]} 3. Nc3 {[%clk 0:02:59]}  d5 {[%clk 0:02:59]} 4. e3 {[%clk 0:02:57]}  Bg7 {[%clk 0:02:58]} 5. Qb3 {[%clk 0:02:54]}  dxc4 {[%clk 0:02:52]} 6. Bxc4 {[%clk 0:02:54]}  O-O {[%clk 0:02:53]} 7. Nf3 {[%clk 0:02:54]}  c5 {[%clk 0:02:53]} 8. d5 {[%clk 0:02:50]}  Ne8 {[%clk 0:02:42]} 9. O-O {[%clk 0:02:48]}  a6 {[%clk 0:02:39]} 10. e4 {[%clk 0:02:40]}  b5 {[%clk 0:02:38]} 11. Be2 {[%clk 0:02:40]}  Bg4 {[%clk 0:02:34]} 12. a4 {[%clk 0:02:30]}  b4 {[%clk 0:02:23]} 13. Nd1 {[%clk 0:02:24]}  Nd6 {[%clk 0:02:22]} 14. Ne3 {[%clk 0:02:24]}  Bxf3 {[%clk 0:02:18]} 15. gxf3 {[%clk 0:02:18]}  Nd7 {[%clk 0:02:17]} 16. Kh1 {[%clk 0:02:18]}  a5 {[%clk 0:02:12]} 17. Rg1 {[%clk 0:02:10]}  Bd4 {[%clk 0:02:02]} 18. Rg2 {[%clk 0:01:57]}  Rc8 {[%clk 0:01:58]} 19. Nc4 {[%clk 0:01:53]}  Ne5 {[%clk 0:01:50]} 20. Nxe5 {[%clk 0:01:50]}  Bxe5 {[%clk 0:01:50]} 21. f4 {[%clk 0:01:48]}  c4 {[%clk 0:01:45]} 22. Qh3 {[%clk 0:01:45]}  Bg7 {[%clk 0:01:43]} 23. e5 {[%clk 0:01:26]}  Nf5 {[%clk 0:01:40]} 24. Bg4 {[%clk 0:01:21]}  Kh8 {[%clk 0:01:17]} 25. Bxf5 {[%clk 0:01:16]}  gxf5 {[%clk 0:01:18]} 26. Qf3 {[%clk 0:01:10]}  c3 {[%clk 0:00:57]} 27. bxc3 {[%clk 0:00:44]}  Rxc3 {[%clk 0:00:58]} 28. Be3 {[%clk 0:00:44]}  b3 {[%clk 0:00:58]} 29. Rag1 {[%clk 0:00:39]}  Rg8 {[%clk 0:00:58]} 30. e6 {[%clk 0:00:11]}  fxe6 {[%clk 0:00:57]} 31. Bd4 {[%clk 0:00:01]}  Rxf3 {[%clk 0:00:48]} 32. Rxg7 {[%clk 0:00:01]}  Rxg7 {[%clk 0:00:47]} 33. Bxg7+ {[%clk 0:00:01]}  Kg8 {[%clk 0:00:47]} 34. dxe6 {[%clk 0:00:01]}  Qd5 {[%clk 0:00:35]} 0-1


[Site "https://www.chess.com"]

[Event "Titled Tuesday Blitz May 11 2021"]
[White "Jobava, Baadur"]
[Black "Oparin, Grigoriy"]
[WhiteFideId "13601520"]
[BlackFideId "24125890"]
[WhiteElo "2748"]
[BlackElo "2628"]
[Result "0-1"]
[Round "11"]
[TimeControl "180+1"]
[Date "2021.05.11"]
[WhiteClock "0:00:02"]
[BlackClock "0:00:14"]

1. e4 {[%clk 0:03:00]}  c5 {[%clk 0:03:00]} 2. d4 {[%clk 0:02:59]}  cxd4 {[%clk 0:02:59]} 3. c3 {[%clk 0:03:00]}  Nf6 {[%clk 0:03:00]} 4. e5 {[%clk 0:03:00]}  Nd5 {[%clk 0:03:00]} 5. Qxd4 {[%clk 0:03:00]}  e6 {[%clk 0:03:00]} 6. Nf3 {[%clk 0:03:01]}  Nc6 {[%clk 0:03:00]} 7. Qg4 {[%clk 0:03:01]}  f5 {[%clk 0:02:55]} 8. Qg3 {[%clk 0:03:00]}  d6 {[%clk 0:02:43]} 9. Bb5 {[%clk 0:03:00]}  Qb6 {[%clk 0:02:34]} 10. Bxc6+ {[%clk 0:02:56]}  Qxc6 {[%clk 0:02:35]} 11. O-O {[%clk 0:02:56]}  Bd7 {[%clk 0:02:34]} 12. Re1 {[%clk 0:02:53]}  O-O-O {[%clk 0:02:34]} 13. Na3 {[%clk 0:02:49]}  h6 {[%clk 0:02:32]} 14. Nd4 {[%clk 0:02:46]}  Qa6 {[%clk 0:02:30]} 15. c4 {[%clk 0:02:31]}  Nb4 {[%clk 0:02:29]} 16. Bd2 {[%clk 0:02:17]}  Nc6 {[%clk 0:02:20]} 17. Nxc6 {[%clk 0:02:09]}  Bxc6 {[%clk 0:02:17]} 18. exd6 {[%clk 0:01:59]}  Bxd6 {[%clk 0:02:16]} 19. Bf4 {[%clk 0:01:58]}  Bxa3 {[%clk 0:02:05]} 20. bxa3 {[%clk 0:01:53]}  g5 {[%clk 0:02:05]} 21. Be5 {[%clk 0:01:52]}  Rh7 {[%clk 0:02:05]} 22. Qc3 {[%clk 0:01:30]}  Rhd7 {[%clk 0:02:04]} 23. Bf6 {[%clk 0:01:30]}  Rd3 {[%clk 0:01:58]} 24. Qe5 {[%clk 0:01:29]}  Re8 {[%clk 0:01:58]} 25. h4 {[%clk 0:01:20]}  Qxc4 {[%clk 0:01:29]} 26. Rac1 {[%clk 0:01:15]}  Qd5 {[%clk 0:01:30]} 27. Qxd5 {[%clk 0:01:08]}  Rxd5 {[%clk 0:01:30]} 28. hxg5 {[%clk 0:01:08]}  hxg5 {[%clk 0:01:31]} 29. Bxg5 {[%clk 0:01:08]}  e5 {[%clk 0:01:30]} 30. Be3 {[%clk 0:00:58]}  Rg8 {[%clk 0:01:17]} 31. f3 {[%clk 0:00:49]}  a6 {[%clk 0:01:09]} 32. Rc2 {[%clk 0:00:43]}  Kd7 {[%clk 0:01:08]} 33. Kf2 {[%clk 0:00:41]}  f4 {[%clk 0:01:07]} 34. Bc1 {[%clk 0:00:39]}  Rg5 {[%clk 0:00:55]} 35. Rd2 {[%clk 0:00:37]}  Rxd2+ {[%clk 0:00:53]} 36. Bxd2 {[%clk 0:00:38]}  Bd5 {[%clk 0:00:53]} 37. a4 {[%clk 0:00:37]}  Bxa2 {[%clk 0:00:51]} 38. a5 {[%clk 0:00:38]}  Bd5 {[%clk 0:00:49]} 39. Bc3 {[%clk 0:00:37]}  Kd6 {[%clk 0:00:48]} 40. Bb4+ {[%clk 0:00:37]}  Ke6 {[%clk 0:00:48]} 41. Bc3 {[%clk 0:00:35]}  Bc6 {[%clk 0:00:48]} 42. Bd2 {[%clk 0:00:34]}  Kf6 {[%clk 0:00:44]} 43. Bc3 {[%clk 0:00:33]}  Rh5 {[%clk 0:00:45]} 44. Bb2 {[%clk 0:00:29]}  Ke6 {[%clk 0:00:44]} 45. Bc3 {[%clk 0:00:29]}  Kd6 {[%clk 0:00:41]} 46. Bb2 {[%clk 0:00:29]}  e4 {[%clk 0:00:39]} 47. fxe4 {[%clk 0:00:26]}  Rxa5 {[%clk 0:00:40]} 48. Kf3 {[%clk 0:00:27]}  Rg5 {[%clk 0:00:33]} 49. Re2 {[%clk 0:00:23]}  Rg3+ {[%clk 0:00:27]} 50. Kxf4 {[%clk 0:00:23]}  Rb3 {[%clk 0:00:28]} 51. g4 {[%clk 0:00:22]}  Ke6 {[%clk 0:00:25]} 52. g5 {[%clk 0:00:22]}  Be8 {[%clk 0:00:25]} 53. Rh2 {[%clk 0:00:20]}  Bg6 {[%clk 0:00:25]} 54. Rh6 {[%clk 0:00:18]}  Kf7 {[%clk 0:00:26]} 55. Bf6 {[%clk 0:00:16]}  Rb4 {[%clk 0:00:26]} 56. Ke5 {[%clk 0:00:15]}  Rxe4+ {[%clk 0:00:25]} 57. Kd6 {[%clk 0:00:16]}  Rc4 {[%clk 0:00:22]} 58. Rh8 {[%clk 0:00:15]}  Rc6+ {[%clk 0:00:22]} 59. Kd5 {[%clk 0:00:15]}  Bf5 {[%clk 0:00:20]} 60. Rb8 {[%clk 0:00:14]}  Be6+ {[%clk 0:00:20]} 61. Ke5 {[%clk 0:00:14]}  b5 {[%clk 0:00:17]} 62. Rb7+ {[%clk 0:00:12]}  Kg6 {[%clk 0:00:17]} 63. Rg7+ {[%clk 0:00:12]}  Kh5 {[%clk 0:00:18]} 64. Rh7+ {[%clk 0:00:13]}  Kg4 {[%clk 0:00:18]} 65. g6 {[%clk 0:00:12]}  Ba2 {[%clk 0:00:18]} 66. g7 {[%clk 0:00:12]}  Re6+ {[%clk 0:00:18]} 67. Kd4 {[%clk 0:00:10]}  Rxf6 {[%clk 0:00:19]} 68. Rh1 {[%clk 0:00:08]}  Rg6 {[%clk 0:00:17]} 69. Ra1 {[%clk 0:00:08]}  Bc4 {[%clk 0:00:16]} 70. Kc5 {[%clk 0:00:07]}  Kg5 {[%clk 0:00:14]} 71. Kb4 {[%clk 0:00:02]}  Rxg7 {[%clk 0:00:14]} 0-1


[Site "https://www.chess.com"]

[Event "Titled Tuesday Blitz May 11 2021"]
[White "Kacharava, Nikolozi"]
[Black "Timmermans, Mark"]
[WhiteFideId "13611860"]
[BlackFideId "1026399"]
[WhiteElo "2149"]
[BlackElo "2460"]
[Result "0-1"]
[Round "11"]
[TimeControl "180+1"]
[Date "2021.05.11"]
[WhiteClock "0:00:32"]
[BlackClock "0:01:25"]

1. e4 {[%clk 0:03:00]}  e5 {[%clk 0:02:11]} 2. Nf3 {[%clk 0:02:59]}  Nc6 {[%clk 0:02:12]} 3. d4 {[%clk 0:02:59]}  exd4 {[%clk 0:02:13]} 4. Nxd4 {[%clk 0:03:00]}  Nf6 {[%clk 0:02:11]} 5. Nxc6 {[%clk 0:03:00]}  bxc6 {[%clk 0:02:12]} 6. e5 {[%clk 0:03:00]}  Qe7 {[%clk 0:02:13]} 7. Qe2 {[%clk 0:03:01]}  Nd5 {[%clk 0:02:13]} 8. h4 {[%clk 0:03:01]}  f6 {[%clk 0:02:11]} 9. Rh3 {[%clk 0:02:58]}  fxe5 {[%clk 0:02:11]} 10. c4 {[%clk 0:02:58]}  Nb6 {[%clk 0:02:11]} 11. Bg5 {[%clk 0:02:48]}  Qe6 {[%clk 0:01:49]} 12. Re3 {[%clk 0:02:48]}  Bb4+ {[%clk 0:01:46]} 13. Nc3 {[%clk 0:02:46]}  d6 {[%clk 0:01:46]} 14. f4 {[%clk 0:02:22]}  O-O {[%clk 0:01:44]} 15. fxe5 {[%clk 0:02:18]}  d5 {[%clk 0:01:44]} 16. cxd5 {[%clk 0:02:13]}  Nxd5 {[%clk 0:01:45]} 17. Rg3 {[%clk 0:02:01]}  a5 {[%clk 0:01:45]} 18. a3 {[%clk 0:01:56]}  Ba6 {[%clk 0:01:43]} 19. Bf6 {[%clk 0:01:10]}  Rxf6 {[%clk 0:01:38]} 20. Rxg7+ {[%clk 0:01:08]}  Kh8 {[%clk 0:01:27]} 21. Rxh7+ {[%clk 0:01:04]}  Kxh7 {[%clk 0:01:28]} 22. Qe4+ {[%clk 0:00:49]}  Qf5 {[%clk 0:01:29]} 23. Qxf5+ {[%clk 0:00:44]}  Rxf5 {[%clk 0:01:30]} 24. Bxa6 {[%clk 0:00:44]}  Bxc3+ {[%clk 0:01:29]} 25. bxc3 {[%clk 0:00:43]}  Rxa6 {[%clk 0:01:30]} 26. c4 {[%clk 0:00:40]}  Rxe5+ {[%clk 0:01:30]} 27. Kd2 {[%clk 0:00:40]}  Nf6 {[%clk 0:01:28]} 28. Rf1 {[%clk 0:00:39]}  Kg6 {[%clk 0:01:28]} 29. Rf4 {[%clk 0:00:38]}  Re4 {[%clk 0:01:26]} 30. Rf3 {[%clk 0:00:38]}  Rxh4 {[%clk 0:01:26]} 31. Rg3+ {[%clk 0:00:38]}  Rg4 {[%clk 0:01:26]} 32. Rd3 {[%clk 0:00:38]}  Rxg2+ {[%clk 0:01:25]} 33. Kc1 {[%clk 0:00:38]}  c5 {[%clk 0:01:26]} 34. a4 {[%clk 0:00:38]}  Re6 {[%clk 0:01:25]} 35. Kd1 {[%clk 0:00:35]}  Rd6 {[%clk 0:01:24]} 36. Ke1 {[%clk 0:00:31]}  Rxd3 {[%clk 0:01:23]} 37. Kf1 {[%clk 0:00:32]}  Ra2 {[%clk 0:01:23]} 38. Ke1 {[%clk 0:00:32]}  Rb3 {[%clk 0:01:24]} 39. Kd1 {[%clk 0:00:32]}  Rb1# {[%clk 0:01:25]} 0-1


[Site "https://www.chess.com"]

[Event "Titled Tuesday Blitz May 11 2021"]
[White "Le, Tuan Minh"]
[Black "Grandelius, Nils"]
[WhiteFideId "12401153"]
[BlackFideId "1710400"]
[WhiteElo "2450"]
[BlackElo "2651"]
[Result "1-0"]
[Round "11"]
[TimeControl "180+1"]
[Date "2021.05.11"]
[WhiteClock "0:00:27"]
[BlackClock "0:00:08"]

1. d4 {[%clk 0:03:00]}  Nf6 {[%clk 0:02:59]} 2. Nf3 {[%clk 0:02:55]}  g6 {[%clk 0:02:57]} 3. Bg5 {[%clk 0:02:55]}  Bg7 {[%clk 0:02:57]} 4. Nbd2 {[%clk 0:02:55]}  O-O {[%clk 0:02:55]} 5. c3 {[%clk 0:02:55]}  d6 {[%clk 0:02:54]} 6. e4 {[%clk 0:02:56]}  h6 {[%clk 0:02:49]} 7. Bh4 {[%clk 0:02:55]}  c5 {[%clk 0:02:48]} 8. dxc5 {[%clk 0:02:55]}  dxc5 {[%clk 0:02:49]} 9. Bc4 {[%clk 0:02:56]}  Nc6 {[%clk 0:02:48]} 10. Qe2 {[%clk 0:02:55]}  Na5 {[%clk 0:02:43]} 11. Bd3 {[%clk 0:02:50]}  Nh5 {[%clk 0:02:41]} 12. Bg3 {[%clk 0:02:46]}  Be6 {[%clk 0:02:37]} 13. O-O {[%clk 0:02:39]}  Qb6 {[%clk 0:02:20]} 14. Rfb1 {[%clk 0:02:35]}  Rad8 {[%clk 0:02:17]} 15. Nf1 {[%clk 0:02:34]}  Rd7 {[%clk 0:01:49]} 16. Bb5 {[%clk 0:02:23]}  Rdd8 {[%clk 0:01:42]} 17. Ne3 {[%clk 0:02:22]}  c4 {[%clk 0:01:31]} 18. Ba4 {[%clk 0:02:17]}  Qc5 {[%clk 0:01:29]} 19. Bc2 {[%clk 0:01:59]}  b5 {[%clk 0:01:29]} 20. a3 {[%clk 0:02:00]}  Nc6 {[%clk 0:01:27]} 21. Rd1 {[%clk 0:02:00]}  a5 {[%clk 0:01:23]} 22. Rxd8 {[%clk 0:01:58]}  Rxd8 {[%clk 0:01:24]} 23. Rd1 {[%clk 0:01:58]}  Rxd1+ {[%clk 0:01:24]} 24. Qxd1 {[%clk 0:01:59]}  Nxg3 {[%clk 0:01:23]} 25. hxg3 {[%clk 0:01:59]}  b4 {[%clk 0:01:24]} 26. axb4 {[%clk 0:01:58]}  axb4 {[%clk 0:01:25]} 27. Qd2 {[%clk 0:01:27]}  Qa5 {[%clk 0:01:12]} 28. Nd5 {[%clk 0:01:25]}  Qa1+ {[%clk 0:01:08]} 29. Bd1 {[%clk 0:01:19]}  bxc3 {[%clk 0:00:59]} 30. bxc3 {[%clk 0:01:04]}  Bxd5 {[%clk 0:00:34]} 31. Qxd5 {[%clk 0:00:29]}  Bxc3 {[%clk 0:00:34]} 32. Kh2 {[%clk 0:00:30]}  Na5 {[%clk 0:00:20]} 33. e5 {[%clk 0:00:26]}  e6 {[%clk 0:00:15]} 34. Qd8+ {[%clk 0:00:27]}  Kg7 {[%clk 0:00:16]} 35. Qf6+ {[%clk 0:00:27]}  Kg8 {[%clk 0:00:16]} 36. Bc2 {[%clk 0:00:27]}  Qb2 {[%clk 0:00:12]} 37. Bxg6 {[%clk 0:00:28]}  fxg6 {[%clk 0:00:13]} 38. Qxg6+ {[%clk 0:00:27]}  Kf8 {[%clk 0:00:13]} 39. Qf6+ {[%clk 0:00:28]}  Ke8 {[%clk 0:00:14]} 40. Qxe6+ {[%clk 0:00:28]}  Kd8 {[%clk 0:00:14]} 41. Qd6+ {[%clk 0:00:28]}  Kc8 {[%clk 0:00:14]} 42. e6 {[%clk 0:00:29]}  Qb5 {[%clk 0:00:11]} 43. Qf8+ {[%clk 0:00:27]}  Kc7 {[%clk 0:00:09]} 44. e7 {[%clk 0:00:27]}  Bb4 {[%clk 0:00:09]} 45. e8=Q {[%clk 0:00:27]}  Qh5+ {[%clk 0:00:08]} 1-0


[Site "https://www.chess.com"]

[Event "Titled Tuesday Blitz May 11 2021"]
[White "Lintchevski, Daniil"]
[Black "Dobrov, Vladimir"]
[WhiteFideId "4171055"]
[BlackFideId "4136594"]
[WhiteElo "2505"]
[BlackElo "2614"]
[Result "0-1"]
[Round "11"]
[TimeControl "180+1"]
[Date "2021.05.11"]
[WhiteClock "0:01:24"]
[BlackClock "0:01:37"]

1. e4 {[%clk 0:03:00]}  c5 {[%clk 0:02:58]} 2. d4 {[%clk 0:03:01]}  cxd4 {[%clk 0:02:58]} 3. Nf3 {[%clk 0:03:02]}  d6 {[%clk 0:02:57]} 4. Nxd4 {[%clk 0:03:02]}  Nf6 {[%clk 0:02:57]} 5. Nc3 {[%clk 0:03:02]}  a6 {[%clk 0:02:58]} 6. h3 {[%clk 0:03:03]}  e6 {[%clk 0:02:55]} 7. g4 {[%clk 0:03:02]}  h6 {[%clk 0:02:56]} 8. Be3 {[%clk 0:03:00]}  g5 {[%clk 0:02:54]} 9. Qe2 {[%clk 0:02:57]}  Nbd7 {[%clk 0:02:54]} 10. O-O-O {[%clk 0:02:57]}  Ne5 {[%clk 0:02:53]} 11. Kb1 {[%clk 0:02:57]}  b5 {[%clk 0:02:49]} 12. f4 {[%clk 0:02:56]}  gxf4 {[%clk 0:02:49]} 13. Bxf4 {[%clk 0:02:57]}  Nfd7 {[%clk 0:02:50]} 14. Nf3 {[%clk 0:02:54]}  Qc7 {[%clk 0:02:49]} 15. Nxe5 {[%clk 0:02:53]}  Nxe5 {[%clk 0:02:48]} 16. a3 {[%clk 0:02:51]}  Bb7 {[%clk 0:02:45]} 17. Bg2 {[%clk 0:02:50]}  Bg7 {[%clk 0:02:36]} 18. Rhf1 {[%clk 0:02:40]}  Nc4 {[%clk 0:02:25]} 19. Rf3 {[%clk 0:02:40]}  Rc8 {[%clk 0:02:21]} 20. Qf2 {[%clk 0:02:08]}  O-O {[%clk 0:02:10]} 21. g5 {[%clk 0:02:00]}  h5 {[%clk 0:02:08]} 22. g6 {[%clk 0:01:56]}  fxg6 {[%clk 0:02:06]} 23. Qg3 {[%clk 0:01:55]}  Rxf4 {[%clk 0:01:48]} 24. Qxf4 {[%clk 0:01:53]}  Nxb2 {[%clk 0:01:47]} 25. Rxd6 {[%clk 0:01:41]}  Na4 {[%clk 0:01:41]} 26. e5 {[%clk 0:01:24]}  Bxf3 {[%clk 0:01:37]} 0-1


[Site "https://www.chess.com"]

[Event "Titled Tuesday Blitz May 11 2021"]
[White "Martinez Alcantara, Jose Eduardo"]
[Black "Artemiev, Vladislav"]
[WhiteFideId "3805662"]
[BlackFideId "24101605"]
[WhiteElo "2690"]
[BlackElo "2783"]
[Result "1/2-1/2"]
[Round "11"]
[TimeControl "180+1"]
[Date "2021.05.11"]
[WhiteClock "0:00:18"]
[BlackClock "0:00:07"]

1. e4 {[%clk 0:03:00]}  e5 {[%clk 0:02:59]} 2. Nf3 {[%clk 0:03:01]}  Nc6 {[%clk 0:02:59]} 3. Bb5 {[%clk 0:02:59]}  a6 {[%clk 0:02:59]} 4. Ba4 {[%clk 0:03:00]}  d6 {[%clk 0:02:59]} 5. c3 {[%clk 0:03:00]}  Bd7 {[%clk 0:02:59]} 6. d4 {[%clk 0:02:59]}  g6 {[%clk 0:02:59]} 7. Be3 {[%clk 0:02:58]}  Nf6 {[%clk 0:02:51]} 8. Nbd2 {[%clk 0:02:57]}  Ng4 {[%clk 0:02:51]} 9. Bg5 {[%clk 0:02:53]}  Be7 {[%clk 0:02:51]} 10. Bxe7 {[%clk 0:02:49]}  Qxe7 {[%clk 0:02:51]} 11. O-O {[%clk 0:02:42]}  O-O {[%clk 0:02:51]} 12. Re1 {[%clk 0:02:39]}  Rae8 {[%clk 0:02:46]} 13. Nf1 {[%clk 0:02:29]}  Nf6 {[%clk 0:02:24]} 14. Ng3 {[%clk 0:02:27]}  b5 {[%clk 0:02:14]} 15. Bb3 {[%clk 0:02:26]}  Bg4 {[%clk 0:02:13]} 16. Qd2 {[%clk 0:01:52]}  Bxf3 {[%clk 0:02:11]} 17. gxf3 {[%clk 0:01:53]}  Na5 {[%clk 0:02:03]} 18. Kh1 {[%clk 0:01:48]}  Kh8 {[%clk 0:01:57]} 19. Rg1 {[%clk 0:01:44]}  c5 {[%clk 0:01:08]} 20. Rad1 {[%clk 0:01:34]}  Nxb3 {[%clk 0:00:59]} 21. axb3 {[%clk 0:01:35]}  cxd4 {[%clk 0:00:48]} 22. cxd4 {[%clk 0:01:36]}  Rd8 {[%clk 0:00:31]} 23. f4 {[%clk 0:01:23]}  exf4 {[%clk 0:00:13]} 24. Qxf4 {[%clk 0:01:24]}  Nd7 {[%clk 0:00:12]} 25. Rc1 {[%clk 0:01:17]}  Qf6 {[%clk 0:00:11]} 26. Qxf6+ {[%clk 0:01:13]}  Nxf6 {[%clk 0:00:12]} 27. Rc6 {[%clk 0:01:14]}  a5 {[%clk 0:00:06]} 28. f3 {[%clk 0:01:12]}  a4 {[%clk 0:00:04]} 29. b4 {[%clk 0:01:12]}  Ne8 {[%clk 0:00:03]} 30. Kg2 {[%clk 0:01:04]}  Ng7 {[%clk 0:00:02]} 31. d5 {[%clk 0:00:59]}  f5 {[%clk 0:00:03]} 32. Rgc1 {[%clk 0:00:58]}  fxe4 {[%clk 0:00:03]} 33. fxe4 {[%clk 0:00:59]}  Rfe8 {[%clk 0:00:03]} 34. Rb6 {[%clk 0:00:56]}  Nh5 {[%clk 0:00:02]} 35. Nxh5 {[%clk 0:00:55]}  gxh5 {[%clk 0:00:03]} 36. Kf3 {[%clk 0:00:54]}  Rd7 {[%clk 0:00:03]} 37. Rxb5 {[%clk 0:00:52]}  Rf7+ {[%clk 0:00:03]} 38. Ke3 {[%clk 0:00:52]}  Rg7 {[%clk 0:00:04]} 39. Rc6 {[%clk 0:00:49]}  Rg4 {[%clk 0:00:03]} 40. Rxd6 {[%clk 0:00:38]}  Rexe4+ {[%clk 0:00:02]} 41. Kd3 {[%clk 0:00:38]}  Rd4+ {[%clk 0:00:03]} 42. Kc3 {[%clk 0:00:27]}  Rc4+ {[%clk 0:00:03]} 43. Kd2 {[%clk 0:00:28]}  Rgd4+ {[%clk 0:00:02]} 44. Ke3 {[%clk 0:00:26]}  Re4+ {[%clk 0:00:03]} 45. Kf2 {[%clk 0:00:25]}  Rf4+ {[%clk 0:00:03]} 46. Kg2 {[%clk 0:00:22]}  Rg4+ {[%clk 0:00:03]} 47. Kf3 {[%clk 0:00:23]}  Rgf4+ {[%clk 0:00:04]} 48. Ke3 {[%clk 0:00:20]}  Rfe4+ {[%clk 0:00:04]} 49. Kd3 {[%clk 0:00:20]}  Red4+ {[%clk 0:00:04]} 50. Ke2 {[%clk 0:00:21]}  Re4+ {[%clk 0:00:05]} 51. Kf1 {[%clk 0:00:22]}  Rf4+ {[%clk 0:00:05]} 52. Kg1 {[%clk 0:00:21]}  Rg4+ {[%clk 0:00:05]} 53. Kf2 {[%clk 0:00:21]}  Rgf4+ {[%clk 0:00:05]} 54. Kg3 {[%clk 0:00:22]}  Rg4+ {[%clk 0:00:06]} 55. Kh3 {[%clk 0:00:19]}  Rh4+ {[%clk 0:00:06]} 56. Kg2 {[%clk 0:00:19]}  Rhg4+ {[%clk 0:00:07]} 57. Kf2 {[%clk 0:00:18]}  Rgf4+ {[%clk 0:00:07]} 1/2-1/2


[Site "https://www.chess.com"]

[Event "Titled Tuesday Blitz May 11 2021"]
[White "Matlakov, Maxim"]
[Black "Aditya Mittal"]
[WhiteFideId "4168003"]
[BlackFideId "35042025"]
[WhiteElo "2760"]
[BlackElo "2171"]
[Result "1/2-1/2"]
[Round "11"]
[TimeControl "180+1"]
[Date "2021.05.11"]
[WhiteClock "0:00:14"]
[BlackClock "0:00:09"]

1. Nf3 {[%clk 0:03:00]}  d5 {[%clk 0:02:59]} 2. b3 {[%clk 0:03:01]}  Nf6 {[%clk 0:03:00]} 3. Bb2 {[%clk 0:03:01]}  g6 {[%clk 0:03:00]} 4. c4 {[%clk 0:03:00]}  c6 {[%clk 0:02:59]} 5. g3 {[%clk 0:02:58]}  Bg7 {[%clk 0:03:00]} 6. Bg2 {[%clk 0:02:58]}  O-O {[%clk 0:03:00]} 7. O-O {[%clk 0:02:58]}  Nbd7 {[%clk 0:03:01]} 8. d4 {[%clk 0:02:58]}  b5 {[%clk 0:03:01]} 9. c5 {[%clk 0:02:43]}  a5 {[%clk 0:02:58]} 10. Nbd2 {[%clk 0:02:40]}  h6 {[%clk 0:02:50]} 11. a3 {[%clk 0:02:37]}  Ne4 {[%clk 0:02:49]} 12. b4 {[%clk 0:02:34]}  a4 {[%clk 0:02:46]} 13. Nxe4 {[%clk 0:02:26]}  dxe4 {[%clk 0:02:47]} 14. Ne5 {[%clk 0:02:26]}  Nxe5 {[%clk 0:02:17]} 15. dxe5 {[%clk 0:02:27]}  Bf5 {[%clk 0:02:16]} 16. h3 {[%clk 0:02:12]}  h5 {[%clk 0:02:06]} 17. Qc2 {[%clk 0:01:41]}  Qc7 {[%clk 0:01:53]} 18. Bxe4 {[%clk 0:01:35]}  Bxh3 {[%clk 0:01:53]} 19. Rfd1 {[%clk 0:01:35]}  Be6 {[%clk 0:01:39]} 20. Qc3 {[%clk 0:01:25]}  Rad8 {[%clk 0:01:37]} 21. Qf3 {[%clk 0:01:24]}  Bg4 {[%clk 0:01:28]} 22. Qe3 {[%clk 0:01:18]}  Be6 {[%clk 0:01:13]} 23. Bc2 {[%clk 0:01:17]}  Rxd1+ {[%clk 0:01:08]} 24. Rxd1 {[%clk 0:01:18]}  Rd8 {[%clk 0:01:09]} 25. Rd4 {[%clk 0:01:10]}  Rxd4 {[%clk 0:01:03]} 26. Qxd4 {[%clk 0:01:11]}  Qd7 {[%clk 0:00:57]} 27. Be4 {[%clk 0:01:07]}  Qxd4 {[%clk 0:00:33]} 28. Bxd4 {[%clk 0:01:08]}  Bd7 {[%clk 0:00:34]} 29. e3 {[%clk 0:01:07]}  e6 {[%clk 0:00:33]} 30. Kg2 {[%clk 0:01:01]}  Bf8 {[%clk 0:00:33]} 31. f4 {[%clk 0:01:00]}  Be7 {[%clk 0:00:34]} 32. Bf3 {[%clk 0:00:57]}  Kg7 {[%clk 0:00:34]} 33. e4 {[%clk 0:00:55]}  Kh6 {[%clk 0:00:31]} 34. Be3 {[%clk 0:00:55]}  Kg7 {[%clk 0:00:32]} 35. Bd4 {[%clk 0:00:55]}  Kh6 {[%clk 0:00:31]} 36. Be2 {[%clk 0:00:54]}  Bc8 {[%clk 0:00:30]} 37. Bd3 {[%clk 0:00:53]}  Bd7 {[%clk 0:00:28]} 38. Be3 {[%clk 0:00:53]}  Kg7 {[%clk 0:00:28]} 39. Kf3 {[%clk 0:00:54]}  Bd8 {[%clk 0:00:25]} 40. g4 {[%clk 0:00:54]}  hxg4+ {[%clk 0:00:24]} 41. Kxg4 {[%clk 0:00:55]}  Be7 {[%clk 0:00:19]} 42. Bd4 {[%clk 0:00:55]}  Bd8 {[%clk 0:00:16]} 43. f5 {[%clk 0:00:55]}  Kg8 {[%clk 0:00:12]} 44. Be3 {[%clk 0:00:48]}  Kg7 {[%clk 0:00:12]} 45. Bg5 {[%clk 0:00:46]}  Bxg5 {[%clk 0:00:10]} 46. Kxg5 {[%clk 0:00:47]}  gxf5 {[%clk 0:00:08]} 47. exf5 {[%clk 0:00:47]}  Be8 {[%clk 0:00:07]} 48. fxe6 {[%clk 0:00:35]}  fxe6 {[%clk 0:00:08]} 49. Be4 {[%clk 0:00:36]}  Bd7 {[%clk 0:00:04]} 50. Bg6 {[%clk 0:00:36]}  Bc8 {[%clk 0:00:03]} 51. Be8 {[%clk 0:00:36]}  Bb7 {[%clk 0:00:04]} 52. Bh5 {[%clk 0:00:20]}  Bc8 {[%clk 0:00:03]} 53. Bg6 {[%clk 0:00:19]}  Bd7 {[%clk 0:00:04]} 54. Be4 {[%clk 0:00:18]}  Be8 {[%clk 0:00:03]} 55. Bf3 {[%clk 0:00:18]}  Bd7 {[%clk 0:00:04]} 56. Bg4 {[%clk 0:00:18]}  Bc8 {[%clk 0:00:04]} 57. Bd1 {[%clk 0:00:17]}  Bd7 {[%clk 0:00:04]} 58. Bc2 {[%clk 0:00:18]}  Be8 {[%clk 0:00:04]} 59. Bd3 {[%clk 0:00:17]}  Bd7 {[%clk 0:00:05]} 60. Bg6 {[%clk 0:00:17]}  Bc8 {[%clk 0:00:05]} 61. Be8 {[%clk 0:00:14]}  Bb7 {[%clk 0:00:05]} 62. Bh5 {[%clk 0:00:06]}  Bc8 {[%clk 0:00:05]} 63. Bd1 {[%clk 0:00:07]}  Bd7 {[%clk 0:00:05]} 64. Bc2 {[%clk 0:00:08]}  Bc8 {[%clk 0:00:06]} 65. Bb1 {[%clk 0:00:08]}  Bd7 {[%clk 0:00:06]} 66. Ba2 {[%clk 0:00:09]}  Bc8 {[%clk 0:00:06]} 67. Bb1 {[%clk 0:00:09]}  Bd7 {[%clk 0:00:07]} 68. Bd3 {[%clk 0:00:10]}  Bc8 {[%clk 0:00:07]} 69. Bf1 {[%clk 0:00:11]}  Bd7 {[%clk 0:00:07]} 70. Bg2 {[%clk 0:00:11]}  Be8 {[%clk 0:00:07]} 71. Bf3 {[%clk 0:00:12]}  Bd7 {[%clk 0:00:08]} 72. Be4 {[%clk 0:00:12]}  Be8 {[%clk 0:00:08]} 73. Bh1 {[%clk 0:00:13]}  Bd7 {[%clk 0:00:08]} 74. Bg2 {[%clk 0:00:13]}  Be8 {[%clk 0:00:08]} 75. Bh3 {[%clk 0:00:13]}  Bd7 {[%clk 0:00:09]} 76. Bg4 {[%clk 0:00:13]}  Bc8 {[%clk 0:00:09]} 77. Kh5 {[%clk 0:00:13]}  Bd7 {[%clk 0:00:09]} 78. Kg5 {[%clk 0:00:14]} 1/2-1/2


[Site "https://www.chess.com"]